bitfinex/quotes_SOLUSD_20260309
["timestamp","ask_amount","ask_price","bid_price","bid_amount"]
[1773088876769,3.48176106,85.639,85.619,11.67960956]
[1773088877480,3.48176106,85.639,85.615,11.97117051]
[1773088879286,11.67705924,85.638,85.616,0.41182571]
[1773088879874,15.1588203,85.638,85.616,0.41182571]
[1773088880565,3.48176106,85.637,85.616,0.41182571]
[1773088880767,3.48176106,85.637,85.611,11.68074196]
[1773088880768,3.48176106,85.629,85.59,4.20097601]
[1773088881175,4.20097601,85.63,85.591,11.68347139]
[1773088881176,3.48176106,85.627,85.591,11.68347139]
[1773088883382,3.48176106,85.625,85.592,0.52595336]
[1773088883569,3.48176106,85.619,85.58,11.68492916]
[1773088883774,3.48176106,85.609,85.57,4.19509139]
[1773088884362,3.48176106,85.609,85.57,4.7487621]
[1773088885087,3.75859641,85.606,85.517,29.23382339]
[1773088885289,3.75859641,85.606,85.499,58.47994168]
[1773088885290,3.75859641,85.549,85.51,4.19509139]
[1773088885496,3.75859641,85.549,85.52,4.19509139]
[1773088885691,3.75859641,85.578,85.54,4.19509139]
[1773088885893,3.75859641,85.578,85.55,4.19509139]
[1773088887393,3.75859641,85.576,85.55,4.19509139]
[1773088887784,0.28432314,85.575,85.55,4.19509139]
[1773088887985,4.04291955,85.575,85.543,0.10772215]
[1773088888173,4.04291955,85.575,85.54,4.19509139]
[1773088890587,3.75859641,85.573,85.54,4.19509139]
[1773088891494,11.68606553,85.572,85.54,4.37840464]
[1773088891704,3.75859641,85.571,85.541,0.20661075]
[1773088892298,11.68606553,85.572,85.551,0.20661075]
[1773088894005,15.45570481,85.577,85.551,11.89544879]
[1773088895105,3.77032206,85.576,85.551,11.89544879]
[1773088895695,3.77032206,85.576,85.551,0.20661075]
[1773088896512,3.77032206,85.576,85.55,4.19509139]
[1773088896719,3.77032206,85.576,85.523,3.69383402]
[1773088896720,3.77032206,85.576,85.54,4.19509139]
[1773088897010,3.77032206,85.574,85.541,0.34088257]
[1773088898012,0.28432314,85.575,85.541,0.34088257]
[1773088898013,3.77032206,85.572,85.541,0.34088257]
[1773088898514,3.77032206,85.572,85.55,4.19509139]
[1773088899812,11.6862021,85.571,85.55,4.19509139]
[1773088900012,3.77032206,85.57,85.55,4.19509139]
[1773088901008,11.68647524,85.569,85.55,4.19509139]
[1773088901408,15.4567973,85.569,85.55,4.19509139]
[1773088901606,3.77032206,85.569,85.55,4.19509139]
[1773088901809,3.77032206,85.576,85.56,4.19509139]
[1773088902010,3.77032206,85.576,85.55,4.19509139]
[1773088904017,3.77032206,85.574,85.55,4.19509139]
[1773088906610,3.77032206,85.572,85.55,4.19509139]
[1773088908420,3.77032206,85.569,85.53,4.19509139]
[1773088908631,4.0546452,85.565,85.53,4.19509139]
[1773088908801,4.0546452,85.565,85.531,0.58305302]
[1773088909000,35.11030487,85.703,85.531,0.58305302]
[1773088909001,3.77032206,85.583,85.551,0.58305302]
[1773088909220,3.77032206,85.588,85.57,4.19509139]
[1773088909420,3.77032206,85.588,85.58,4.19509139]
[1773088909617,3.77032206,85.615,85.581,0.60175911]
[1773088909824,3.77032206,85.615,85.589,0.60175911]
[1773088910033,3.77032206,85.615,85.59,4.19509139]
[1773088910816,3.94475351,85.614,85.59,4.19509139]
[1773088911211,3.94475351,85.614,85.55,29.22250778]
[1773088911521,3.94475351,85.593,85.56,4.19509139]
[1773088912115,3.94475351,85.591,85.55,4.19509139]
[1773088912420,3.94475351,85.583,85.55,4.19509139]
[1773088913006,3.94475351,85.581,85.55,4.19509139]
[1773088913410,3.94475351,85.581,85.56,4.19509139]
[1773088914500,3.94475351,85.579,85.55,4.19509139]
[1773088914823,3.94475351,85.573,85.54,4.19509139]
[1773088915213,3.94475351,85.571,85.55,4.19509139]
[1773088916029,3.94475351,85.578,85.55,4.19509139]
[1773088916342,3.94475351,85.578,85.56,4.19509139]
[1773088917540,3.94475351,85.576,85.55,4.19509139]
[1773088920134,11.68565585,85.575,85.55,4.19509139]
[1773088920327,15.63040936,85.575,85.55,4.19509139]
[1773088920528,3.94475351,85.574,85.55,4.19509139]
[1773088920728,3.94475351,85.574,85.56,4.19509139]
[1773088921243,11.68565585,85.575,85.56,4.19509139]
[1773088921813,15.63040936,85.575,85.56,4.19509139]
[1773088923133,3.94475351,85.574,85.56,4.19509139]
[1773088925114,11.68592897,85.573,85.551,11.68893408]
[1773088925332,3.96175043,85.572,85.551,11.68893408]
[1773088927310,11.68592897,85.573,85.56,4.19509139]
[1773088928128,3.96175043,85.589,85.56,4.19509139]
[1773088928331,11.68388091,85.588,85.57,4.19509139]
[1773088928735,4.22553631,85.587,85.57,4.19509139]
[1773088929640,15.90969026,85.586,85.57,4.19509139]
[1773088931539,11.68415395,85.586,85.57,4.19509139]
[1773088931749,15.90917511,85.59,85.57,4.19509139]
[1773088931926,4.22553631,85.589,85.57,4.19509139]
[1773088932743,4.22553631,85.589,85.58,4.19509139]
[1773088932947,4.22553631,85.589,85.57,4.19509139]
[1773088933532,4.22553631,85.587,85.56,11.77298064]
[1773088933840,4.22553631,85.587,85.57,4.19509139]
[1773088934444,4.22553631,85.587,85.555,11.68828034]
[1773088934643,4.22553631,85.587,85.56,4.19509139]
[1773088934841,4.22553631,85.587,85.57,4.19509139]
[1773088935442,4.22553631,85.587,85.555,11.68828034]
[1773088935634,4.22553631,85.585,85.56,4.19509139]
[1773088936640,4.22553631,85.583,85.56,4.19509139]
[1773088936837,4.22553631,85.583,85.55,4.19509139]
[1773088937239,4.22553631,85.583,85.55,15.88412703]
[1773088937455,4.22553631,85.583,85.56,4.19509139]
[1773088939654,4.22553631,85.581,85.56,4.19509139]
[1773088939955,4.22553631,85.581,85.55,15.88412703]
[1773088940755,4.22553631,85.581,85.55,16.06011681]
[1773088942050,4.22553631,85.579,85.55,16.06011681]
[1773088942549,4.22553631,85.579,85.55,15.88412703]
[1773088942747,4.22553631,85.573,85.54,4.19509139]
[1773088943551,4.22553631,85.573,85.544,0.2005869]
[1773088943744,4.22553631,85.573,85.55,4.19856813]
[1773088945750,4.34375292,85.58,85.56,4.19856813]
[1773088947158,4.34375292,85.58,85.54,4.19856813]
[1773088947854,11.68510966,85.579,85.541,11.69030055]
[1773088948049,4.34375292,85.578,85.541,11.69030055]
[1773088948741,4.34375292,85.578,85.541,11.72492583]
[1773088948942,4.34375292,85.578,85.55,4.19856813]
[1773088949453,4.34375292,85.574,85.54,4.19856813]
[1773088949966,4.34375292,85.572,85.54,4.19856813]
[1773088951866,4.34375292,85.57,85.55,4.19856813]
[1773088952542,4.34375292,85.57,85.541,11.75741181]
[1773088954778,4.34375292,85.566,85.53,4.19856813]
[1773088954950,4.34375292,85.564,85.53,4.19856813]
[1773088955265,4.34375292,85.564,85.531,11.69166734]
[1773088957443,4.34375292,85.562,85.531,11.69166734]
[1773088959768,4.34375292,85.562,85.495,50.47985758]
[1773088959769,4.34375292,85.547,85.503,0.15260965]
[1773088960064,4.19856813,85.55,85.51,4.35117778]
[1773088960065,4.34375292,85.534,85.51,4.35117778]
[1773088961859,0.28432314,85.542,85.51,4.35117778]
[1773088961860,4.34375292,85.532,85.51,4.35117778]
[1773088964458,4.34375292,85.532,85.511,11.88224918]
[1773088968472,4.34375292,85.532,85.511,11.69440188]
[1773088972874,4.34375292,85.532,85.511,11.96353776]
[1773088975275,4.34375292,85.53,85.5,4.19856813]
[1773088975975,4.34375292,85.53,85.501,0.29174686]
[1773088978375,11.69194074,85.529,85.5,4.19856813]
[1773088978679,4.34375292,85.528,85.5,4.19856813]
[1773088979285,4.34375292,85.528,85.5,4.51106229]
[1773088979764,4.34375292,85.528,85.501,11.69576964]
[1773088980164,4.34375292,85.528,85.501,12.0082638]
[1773088980561,4.34375292,85.524,85.49,4.19856813]
[1773088980771,4.34375292,85.524,85.49,4.51106229]
[1773088981081,4.34375292,85.524,85.491,0.31249416]
[1773088981689,4.34375292,85.522,85.492,11.69700088]
[1773088982167,4.34375292,85.522,85.492,12.00949504]
[1773088983482,4.34375292,85.522,85.492,0.31249416]
[1773088983687,4.34375292,85.522,85.47,0.1]
[1773088983688,4.34375292,85.517,85.481,11.6985061]
[1773088983986,4.34375292,85.513,85.481,11.6985061]
[1773088984167,4.34375292,85.513,85.47,0.1]
[1773088984168,4.34375292,85.509,85.47,0.1]
[1773088984367,4.34375292,85.497,85.46,4.19856813]
[1773088984580,0.14216157,85.484,85.445,11.70338346]
[1773088984780,4.29375292,85.478,85.46,4.19856813]
[1773088985083,4.29375292,85.478,85.45,4.29856813]
[1773088985584,4.29375292,85.474,85.45,0.1]
[1773088986373,4.29375292,85.472,85.45,0.1]
[1773088991072,4.29375292,85.47,85.45,4.29856813]
[1773088991388,0.28432314,85.488,85.46,4.19856813]
[1773088991588,0.28432314,85.488,85.457,4.11562029]
[1773088991794,41.22574181,85.488,85.451,4.11562029]
[1773088993491,4.28962634,85.483,85.451,4.11562029]
[1773088993694,4.28962634,85.483,85.461,4.11562029]
[1773088995276,4.28962634,85.483,85.452,11.70247624]
[1773088995277,46.75973458,85.544,85.471,4.11562029]
[1773088995476,46.75973458,85.544,85.491,4.11562029]
[1773088995477,11.69330791,85.519,85.491,4.11562029]
[1773088995883,0.28432314,85.518,85.491,4.11562029]
[1773088996292,11.69330791,85.519,85.491,4.11562029]
[1773088996507,0.28432314,85.518,85.491,4.11562029]
[1773088997383,4.28962634,85.511,85.491,4.11562029]
[1773088998397,11.69426513,85.512,85.491,4.11562029]
[1773089000002,11.97804127,85.516,85.491,4.11562029]
[1773089000388,16.26766761,85.516,85.491,4.11562029]
[1773089000889,4.28962634,85.514,85.491,4.11562029]
[1773089002599,11.69412837,85.513,85.491,4.11562029]
[1773089003794,15.98375471,85.513,85.491,4.11562029]
[1773089004693,4.28962634,85.512,85.491,4.11562029]
[1773089004895,4.28962634,85.512,85.485,4.11562029]
[1773089005208,4.28962634,85.51,85.469,4.11562029]
[1773089005398,0.14216157,85.504,85.47,8.31418842]
[1773089005608,4.28962634,85.503,85.47,8.3218958]
[1773089006903,4.28962634,85.501,85.471,4.11562029]
[1773089008186,4.28962634,85.501,85.471,11.69987481]
[1773089008506,4.28962634,85.501,85.472,4.11562029]
[1773089010304,11.69590643,85.5,85.473,11.69960104]
[1773089010497,11.69590643,85.5,85.474,4.11562029]
[1773089010498,4.28962634,85.499,85.474,4.11562029]
[1773089011611,15.98580636,85.498,85.474,4.11562029]
[1773089011809,4.28962634,85.497,85.474,4.11562029]
[1773089012893,4.28962634,85.497,85.476,4.11562029]
[1773089013093,11.69618002,85.498,85.48,4.20627551]
[1773089013298,11.69618002,85.498,85.481,4.11562029]
[1773089013807,29.23908212,85.502,85.481,4.11562029]
[1773089014009,4.03844103,85.501,85.481,4.11562029]
[1773089015906,11.69590643,85.5,85.483,3.86160336]
[1773089020205,4.03844103,85.5,85.483,3.86160336]
[1773089020714,0.28432314,85.515,85.491,3.86160336]
[1773089020921,4.03844103,85.514,85.491,3.86160336]
[1773089021803,11.69412837,85.513,85.491,3.86160336]
[1773089022330,11.69412837,85.513,85.489,11.69737451]
[1773089022331,11.69412837,85.513,85.5,4.20627551]
[1773089022513,4.03844103,85.512,85.5,4.20627551]
[1773089023504,4.03844103,85.512,85.497,3.86160336]
[1773089024903,0.28432314,85.516,85.5,4.20627551]
[1773089025128,4.32276417,85.516,85.5,4.20627551]
[1773089025718,4.03844103,85.529,85.511,3.86160336]
[1773089026304,4.03844103,85.529,85.504,3.86160336]
[1773089027426,4.03844103,85.527,85.504,3.86160336]
[1773089029624,11.69235086,85.526,85.504,3.86160336]
[1773089029923,4.03844103,85.525,85.504,3.86160336]
[1773089031226,3.61149486,85.523,85.49,7.91675491]
[1773089032227,3.61149486,85.521,85.491,3.7104794]
[1773089033818,3.61149486,85.521,85.492,3.7104794]
[1773089034522,3.61149486,85.519,85.5,4.20627551]
[1773089034719,3.61149486,85.519,85.501,3.7104794]
[1773089035309,3.61149486,85.519,85.495,3.7104794]
[1773089035711,3.61149486,85.515,85.483,11.69820245]
[1773089035926,3.61149486,85.513,85.484,3.7104794]
[1773089040934,3.61149486,85.511,85.481,3.7104794]
[1773089042436,40.92992796,85.512,85.47,4.20627551]
[1773089042437,3.61149486,85.509,85.47,4.20627551]
[1773089042732,4.49059865,85.51,85.47,4.20627551]
[1773089042733,3.61149486,85.503,85.471,3.7104794]
[1773089043309,3.84595761,85.501,85.471,3.7104794]
[1773089047425,15.54049626,85.51,85.49,4.20627551]
[1773089047624,11.69409894,85.514,85.491,3.56483135]
[1773089047830,11.69356041,85.518,85.501,3.56483135]
[1773089048827,11.69356041,85.518,85.455,4.86404056]
[1773089048828,3.84595761,85.517,85.494,3.56483135]
[1773089049032,3.84595761,85.517,85.44,4.30627551]
[1773089049033,3.84595761,85.513,85.481,3.56483135]
[1773089051537,3.84595761,85.511,85.483,3.56483135]
[1773089053036,4.20627551,85.53,85.48,4.20627551]
[1773089053037,3.84595761,85.544,85.501,3.56483135]
[1773089053234,3.84595761,85.544,85.521,3.56483135]
[1773089055153,3.84595761,85.542,85.521,3.56483135]
[1773089056247,3.84595761,85.542,85.515,3.56483135]
[1773089057326,4.20627551,85.55,85.515,3.56483135]
[1773089057327,3.84595761,85.54,85.515,3.56483135]
[1773089059129,3.84595761,85.538,85.515,3.56483135]
[1773089062246,3.84595761,85.536,85.515,3.56483135]
[1773089063447,11.69084723,85.537,85.515,3.56483135]
[1773089065246,3.84595761,85.539,85.515,3.56483135]
[1773089067554,11.69071056,85.538,85.515,3.56483135]
[1773089068253,10.23739851,85.538,85.521,3.56483135]
[1773089070546,3.84595761,85.537,85.521,3.56483135]
[1773089071653,11.69098391,85.536,85.521,3.56483135]
[1773089071950,15.53694152,85.536,85.521,3.56483135]
[1773089072341,3.84595761,85.535,85.521,3.56483135]
[1773089073550,11.69125727,85.534,85.521,3.56483135]
[1773089074329,11.69125727,85.534,85.513,3.44801649]
[1773089074649,3.23664796,85.533,85.513,3.44801649]
[1773089077444,11.69153065,85.532,85.513,3.44801649]
[1773089078825,3.23664796,85.532,85.513,3.44801649]
[1773089079932,3.23664796,85.543,85.521,3.44801649]
[1773089081152,3.23664796,85.541,85.521,3.44801649]
[1773089082250,3.23664796,85.539,85.52,4.20159411]
[1773089082653,3.23664796,85.539,85.52,7.6496106]
[1773089083946,3.23664796,85.539,85.521,3.44801649]
[1773089084456,3.23664796,85.537,85.521,3.44801649]
[1773089084653,3.23664796,85.537,85.512,3.44801649]
[1773089086643,3.23664796,85.535,85.512,3.44801649]
[1773089086849,3.23664796,85.535,85.51,4.20159411]
[1773089087239,3.23664796,85.533,85.506,3.44801649]
[1773089087845,3.23664796,85.533,85.51,4.20159411]
[1773089089742,3.08853641,85.531,85.51,4.20159411]
[1773089090743,3.08853641,85.531,85.506,3.44801649]
[1773089091851,3.08853641,85.529,85.506,3.44801649]
[1773089093060,3.08853641,85.529,85.51,7.43747021]
[1773089095867,3.08853641,85.527,85.51,7.43747021]
[1773089096561,3.08853641,85.527,85.51,3.2358761]
[1773089098375,11.69235086,85.526,85.51,3.2358761]
[1773089098755,14.78088727,85.526,85.51,3.2358761]
[1773089100167,3.08853641,85.525,85.51,3.2358761]
[1773089100473,29.22882663,85.532,85.48,11.69864295]
[1773089100474,3.08853641,85.523,85.48,11.69864295]
[1773089100670,3.08853641,85.523,85.49,4.20159411]
[1773089101960,3.08853641,85.523,85.5,4.20159411]
[1773089102262,14.78143414,85.522,85.501,3.2358761]
[1773089102676,3.08853641,85.521,85.501,3.2358761]
[1773089103371,3.23327038,85.54,85.511,3.25406592]
[1773089103572,11.68961728,85.546,85.521,3.25406592]
[1773089103573,3.23327038,85.545,85.521,3.25406592]
[1773089103889,0.28432314,85.544,85.521,3.25406592]
[1773089104253,11.69002723,85.543,85.521,3.25406592]
[1773089104675,3.23327038,85.542,85.521,3.25406592]
[1773089107169,3.23327038,85.542,85.48,5.3714584]
[1773089107170,3.23327038,85.556,85.531,3.25406592]
[1773089107373,11.68784113,85.559,85.541,3.25406592]
[1773089108656,15.20475167,85.564,85.541,3.25406592]
[1773089108958,3.23327038,85.563,85.541,3.25406592]
[1773089109676,3.23327038,85.563,85.536,3.25406592]
[1773089110675,3.23327038,85.561,85.536,3.25406592]
[1773089112756,3.23327038,85.559,85.536,3.25406592]
[1773089113867,3.23327038,85.557,85.536,3.25406592]
[1773089114778,3.23327038,85.549,85.518,3.25406592]
[1773089115072,3.23327038,85.543,85.518,3.25406592]
[1773089115960,3.23327038,85.541,85.511,3.25406592]
[1773089118471,3.23327038,85.539,85.51,4.20159411]
[1773089118984,3.23327038,85.539,85.521,3.25406592]
[1773089120582,3.23327038,85.544,85.521,3.25406592]
[1773089122691,11.69002723,85.543,85.521,3.25406592]
[1773089123078,3.23327038,85.542,85.521,3.25406592]
[1773089125186,3.23327038,85.54,85.5,3.25406592]
[1773089125377,3.23327038,85.529,85.494,3.06689573]
[1773089125695,3.23327038,85.523,85.494,3.06689573]
[1773089126409,3.23327038,85.523,85.49,4.20159411]
[1773089127294,3.23327038,85.517,85.481,3.25406592]
[1773089127500,3.23327038,85.513,85.481,3.25406592]
[1773089128893,2.16029697,85.513,85.481,3.25406592]
[1773089129100,0.28432314,85.521,85.491,3.25406592]
[1773089129306,0.28432314,85.519,85.491,3.25406592]
[1773089129680,11.69317118,85.52,85.501,3.25406592]
[1773089129998,11.69317118,85.52,85.51,4.20468495]
[1773089130184,11.69317118,85.52,85.503,3.25406592]
[1773089130907,14.92644156,85.52,85.503,3.25406592]
[1773089131082,3.23327038,85.519,85.5,4.20468495]
[1773089131686,3.23327038,85.519,85.5,7.45875087]
[1773089131890,11.69344465,85.518,85.501,3.25406592]
[1773089132198,3.23327038,85.533,85.501,3.25406592]
[1773089132382,3.23327038,85.532,85.495,3.25406592]
[1773089132596,3.23327038,85.529,85.495,3.25406592]
[1773089133285,3.07563514,85.527,85.495,3.25406592]
[1773089133486,3.07563514,85.525,85.495,3.25406592]
[1773089133799,41.20755116,85.526,85.495,3.25406592]
[1773089133800,3.07563514,85.523,85.495,3.25406592]
[1773089134499,0.28432314,85.525,85.501,2.93145793]
[1773089134691,11.69235086,85.526,85.501,2.93145793]
[1773089135202,14.767986,85.526,85.501,2.93145793]
[1773089135396,3.07563514,85.525,85.501,2.93145793]
[1773089135598,14.76825943,85.524,85.501,2.93145793]
[1773089135901,3.07563514,85.523,85.501,2.93145793]
[1773089137796,11.69289773,85.522,85.501,2.93145793]
[1773089139002,11.69050092,85.54,85.503,2.93145793]
[1773089139188,11.69050092,85.54,85.516,2.93145793]
[1773089139189,3.07563514,85.539,85.516,2.93145793]
[1773089140235,3.07563514,85.537,85.507,2.93145793]
[1773089140531,41.2018101,85.538,85.501,2.93145793]
[1773089140532,0.14216157,85.528,85.501,2.93145793]
[1773089140729,3.07563514,85.531,85.501,2.93145793]
[1773089140934,3.07563514,85.531,85.511,2.93145793]
[1773089141226,3.07563514,85.537,85.511,2.93145793]
[1773089146942,3.07563514,85.535,85.511,2.93145793]
[1773089149847,2.92460782,85.533,85.511,2.93145793]
[1773089152049,2.92460782,85.533,85.5,4.20468495]
[1773089152050,2.92460782,85.531,85.5,4.20468495]
[1773089153843,40.92035728,85.532,85.51,4.20468495]
[1773089154048,29.22882663,85.532,85.511,1.33346074]
[1773089154447,2.92460782,85.531,85.511,1.33346074]
[1773089155447,2.92460782,85.529,85.506,1.32900964]
[1773089156834,2.92460782,85.527,85.502,1.32026025]
[1773089157033,2.92460782,85.527,85.492,13.01718741]
[1773089157247,2.92460782,85.527,85.493,1.32026025]
[1773089158144,2.92460782,85.527,85.49,4.20468495]
[1773089158145,2.92460782,85.525,85.488,1.3140397]
[1773089158351,2.92460782,85.523,85.488,1.3140397]
[1773089158880,2.92460782,85.519,85.482,1.3078906]
[1773089159351,2.92460782,85.519,85.483,1.3078906]
[1773089159554,2.92460782,85.519,85.49,4.20468495]
[1773089160948,2.92460782,85.517,85.49,4.20468495]
[1773089163038,2.92460782,85.515,85.491,1.28399242]
[1773089163238,3.20893096,85.526,85.501,1.28399242]
[1773089163441,2.97697741,85.523,85.501,1.28399242]
[1773089163749,2.97697741,85.523,85.496,1.27818844]
[1773089164959,2.97697741,85.521,85.496,1.27818844]
[1773089165660,11.69289773,85.522,85.501,1.26117344]
[1773089165862,2.97697741,85.521,85.49,5.46585839]
[1773089166050,2.97697741,85.521,85.491,1.26117344]
[1773089167758,2.97697741,85.519,85.491,1.26117344]
[1773089169761,2.97697741,85.517,85.491,1.26117344]
[1773089170744,2.97697741,85.517,85.5,4.20468495]
[1773089171557,2.97697741,85.515,85.491,1.26117344]
[1773089172957,11.69371813,85.516,85.501,1.22369171]
[1773089179268,2.97697741,85.516,85.5,4.20468495]
[1773089182150,11.69385487,85.515,85.495,1.19389079]
[1773089182348,2.97697741,85.514,85.495,1.19389079]
[1773089183252,2.97697741,85.514,85.491,1.17514065]
[1773089184663,11.69412837,85.513,85.5,4.20468495]
[1773089185174,2.97697741,85.512,85.5,4.20468495]
[1773089185552,2.97697741,85.512,85.493,1.16608554]
[1773089185875,2.97697741,85.512,85.48,4.20468495]
[1773089186080,2.97697741,85.512,85.481,1.16163584]
[1773089186257,11.69412837,85.513,85.49,4.20468495]
[1773089186452,2.97697741,85.512,85.491,1.16163584]
[1773089186656,11.69440188,85.511,85.491,1.16163584]
[1773089186974,14.67137929,85.511,85.491,1.16163584]
[1773089188375,2.97697741,85.51,85.491,1.16163584]
[1773089189572,4.20468495,85.53,85.455,62.4]
[1773089189573,11.69245209,85.526,85.501,1.14859105]
[1773089190454,2.97697741,85.525,85.501,1.14859105]
[1773089190655,2.97697741,85.525,85.5,4.20273178]
[1773089194277,3.03836514,85.523,85.475,11.69932728]
[1773089194462,3.03836514,85.523,85.49,4.20273178]
[1773089197861,3.03836514,85.521,85.49,4.20273178]
[1773089198062,3.03836514,85.521,85.491,11.69713771]
[1773089199960,40.92609915,85.52,85.49,4.20273178]
[1773089200160,3.03836514,85.519,85.49,4.20273178]
[1773089200979,3.03836514,85.517,85.457,11.70179154]
[1773089201156,3.03836514,85.513,85.48,4.20273178]
[1773089202764,3.03836514,85.511,85.48,4.20273178]
[1773089203677,3.03836514,85.509,85.458,11.70165461]
[1773089203983,3.03836514,85.503,85.47,4.20273178]
[1773089204975,3.03836514,85.501,85.46,4.20273178]
[1773089205986,3.03836514,85.499,85.46,4.20273178]
[1773089206185,3.03836514,85.487,85.45,4.30273178]
[1773089206488,3.03836514,85.483,85.45,4.30273178]
[1773089206786,3.03836514,85.483,85.46,4.20273178]
[1773089207987,3.03836514,85.481,85.46,4.20273178]
[1773089208480,3.03836514,85.481,85.457,11.70174779]
[1773089208481,3.03836514,85.501,85.47,4.20273178]
[1773089208672,3.03836514,85.501,85.49,4.20273178]
[1773089209885,11.69590643,85.5,85.49,4.20273178]
[1773089210087,14.73427157,85.5,85.49,4.20273178]
[1773089214986,3.03836514,85.5,85.49,4.20273178]
[1773089215582,14.73440836,85.499,85.49,4.20273178]
[1773089215892,3.03836514,85.498,85.49,4.20273178]
[1773089216388,3.03836514,85.498,85.456,29.25452231]
[1773089216594,3.03836514,85.498,85.47,4.20273178]
[1773089217677,11.69631682,85.497,85.47,4.20273178]
[1773089217877,3.03836514,85.496,85.47,4.20273178]
[1773089218278,3.03836514,85.496,85.48,4.20273178]
[1773089218992,11.69588029,85.501,85.49,4.20273178]
[1773089219190,11.69588029,85.501,85.48,4.20273178]
[1773089219493,3.03836514,85.5,85.48,4.20273178]
[1773089219691,11.69604322,85.499,85.48,4.20273178]
[1773089220078,3.03836514,85.498,85.47,4.20273178]
[1773089221785,40.93615129,85.499,85.48,4.20273178]
[1773089221786,11.69604322,85.499,85.48,4.20273178]
[1773089222686,11.69604322,85.499,85.48,15.90136624]
[1773089222882,11.69494895,85.507,85.49,4.20273178]
[1773089223085,3.03836514,85.531,85.5,4.20273178]
[1773089223296,11.69057389,85.539,85.52,4.20273178]
[1773089223297,3.03836514,85.538,85.52,4.20273178]
[1773089223680,3.03836514,85.538,85.51,4.20273178]
[1773089223979,3.03836514,85.536,85.51,4.20273178]
[1773089225099,3.03836514,85.536,85.511,11.69440188]
[1773089225282,3.03836514,85.536,85.51,4.20273178]
[1773089227098,29.22404498,85.546,85.511,11.69440188]
[1773089227296,3.03836514,85.544,85.52,4.20273178]
[1773089228801,3.03836514,85.544,85.511,11.69440188]
[1773089229198,3.03836514,85.542,85.511,11.69440188]
[1773089229907,3.03836514,85.542,85.52,4.20273178]
[1773089231387,11.69030055,85.541,85.52,4.20273178]
[1773089231586,14.72866569,85.541,85.52,4.20273178]
[1773089232206,3.03836514,85.54,85.52,4.20273178]
[1773089233108,3.03836514,85.54,85.51,4.20273178]
[1773089233308,3.03836514,85.538,85.51,4.20273178]
[1773089236908,3.03836514,85.536,85.51,4.20273178]
[1773089239815,11.69112059,85.535,85.51,4.20273178]
[1773089239999,3.03836514,85.534,85.51,4.20273178]
[1773089240202,3.03836514,85.534,85.483,3.69383402]
[1773089240203,3.03836514,85.529,85.49,4.20273178]
[1773089240406,3.03836514,85.523,85.49,4.20273178]
[1773089241294,3.03836514,85.519,85.48,4.20273178]
[1773089243509,3.03836514,85.519,85.453,0.28432314]
[1773089243510,3.03836514,85.487,85.41,0.1]
[1773089243824,3.03836514,85.484,85.46,4.20273178]
[1773089244412,3.03836514,85.484,85.45,4.30273178]
[1773089245820,3.03836514,85.482,85.45,4.30273178]
[1773089246223,3.03836514,85.469,85.45,0.1]
[1773089246609,3.03836514,85.469,85.44,0.1]
[1773089248422,3.03836514,85.469,85.44,4.30273178]
[1773089248423,2.98836514,85.467,85.44,4.30273178]
[1773089248724,29.25065097,85.469,85.441,2.86020524]
[1773089248939,11.70028548,85.468,85.441,2.86020524]
[1773089250830,2.73102231,85.465,85.44,0.1]
[1773089251137,2.73102231,85.465,85.441,2.86020524]
[1773089253050,2.73102231,85.463,85.44,4.3091369]
[1773089253245,2.73102231,85.463,85.44,0.1]
[1773089255432,2.77878669,85.461,85.44,0.1]
[1773089257143,2.77878669,85.461,85.44,0.01990576]
[1773089257320,2.77878669,85.459,85.421,2.74491798]
[1773089257524,2.77878669,85.449,85.42,0.1]
[1773089257736,2.77878669,85.449,85.421,2.74491798]
[1773089258042,2.77878669,85.449,85.43,6.95405488]
[1773089259146,2.77878669,85.455,85.431,2.74491798]
[1773089259349,11.70192847,85.456,85.441,2.74491798]
[1773089259741,11.70097001,85.463,85.441,2.74491798]
[1773089260353,11.70097001,85.463,85.421,29.26680792]
[1773089260354,2.77878669,85.449,85.41,1e-08]
[1773089260536,2.77878669,85.449,85.384,7.52671616]
[1773089260537,2.77878669,85.419,85.384,7.52671616]
[1773089260735,2.77878669,85.419,85.38,20.06107296]
[1773089261044,2.77878669,85.419,85.381,2.74491798]
[1773089261353,2.82541182,85.389,85.36,0.1]
[1773089261557,0.28432314,85.402,85.33,4.2091369]
[1773089261558,2.82541182,85.379,85.33,4.2091369]
[1773089261865,2.82541182,85.379,85.325,29.29949504]
[1773089261866,2.77878669,85.377,85.34,4.2091369]
[1773089262146,2.77878669,85.369,85.33,4.2091369]
[1773089262349,2.77878669,85.369,85.322,41.0210731]
[1773089262545,2.77878669,85.369,85.34,4.2091369]
[1773089263933,2.77878669,85.367,85.34,4.2091369]
[1773089264143,2.77878669,85.367,85.335,11.71851505]
[1773089264544,2.77878669,85.359,85.32,4.2091369]
[1773089264936,2.77878669,85.359,85.33,4.2091369]
[1773089265131,2.77878669,85.359,85.34,4.2091369]
[1773089265332,2.77878669,85.367,85.34,4.2091369]
[1773089266551,11.23364857,85.374,85.35,4.2091369]
[1773089266859,11.71330514,85.373,85.35,4.2091369]
[1773089268362,14.49209183,85.373,85.35,4.2091369]
[1773089268543,24.18307764,85.373,85.35,4.2091369]